bitfinex-derivatives/quotes_BTCF0:USTF0_20240929
["timestamp","ask_amount","ask_price","bid_price","bid_amount"]
[1727650999327,0.16603,65747.0,65744.0,0.076033]
[1727650999527,0.16603,65747.0,65744.0,0.077033]
[1727650999726,0.001,65745.0,65744.0,0.078033]
[1727651000327,0.001,65745.0,65744.0,0.168033]
[1727651001226,0.005,65747.0,65744.0,0.001]
[1727651001428,0.015,65747.0,65744.0,0.002]
[1727651001731,0.01,65747.0,65746.0,0.076031]
[1727651002121,0.3608,65748.0,65747.0,0.07603]
[1727651002334,0.09,65750.0,65747.0,0.07603]
[1727651002831,0.3608,65752.0,65751.0,0.076025]
[1727651003033,0.09,65754.0,65751.0,0.076025]
[1727651003333,0.3643,65760.0,65751.0,0.09]
[1727651003638,0.3643,65760.0,65756.0,0.09]
[1727651003639,0.076016,65759.0,65756.0,0.09]
[1727651004835,0.081016,65759.0,65756.0,0.091]
[1727651005532,0.091016,65759.0,65756.0,0.092]
[1727651005929,0.091016,65759.0,65756.0,0.002]
[1727651006126,0.181016,65759.0,65756.0,0.002]
[1727651009037,0.181016,65759.0,65756.0,0.078019]
[1727651009431,0.09,65757.0,65756.0,0.002]
[1727651010133,0.09,65757.0,65756.0,0.078019]
[1727651010535,0.09,65757.0,65756.0,0.077019]
[1727651010730,0.099,65757.0,65756.0,0.078019]
[1727651011043,0.104,65757.0,65756.0,0.078019]
[1727651011533,0.104,65757.0,65756.0,0.09711188]
[1727651014836,0.180018,65757.0,65756.0,0.02109288]
[1727651015645,0.211918,65757.0,65756.0,0.002]
[1727651021343,0.211918,65757.0,65756.0,0.078019]
[1727651025531,0.211918,65757.0,65756.0,0.002]
[1727651025734,0.076023,65753.0,65752.0,0.3608]
[1727651025937,0.076026,65750.0,65749.0,0.079527]
[1727651026144,0.166026,65750.0,65749.0,0.076027]
[1727651026947,0.166026,65750.0,65749.0,0.09463652]
[1727651027142,0.095,65750.0,65749.0,0.09563652]
[1727651027941,0.104,65750.0,65749.0,0.09663652]
[1727651028356,0.180026,65750.0,65749.0,0.09663652]
[1727651032548,0.180026,65750.0,65749.0,0.02060952]
[1727651032955,0.21249717,65750.0,65749.0,0.02060952]
[1727651034845,0.180026,65750.0,65749.0,0.02060952]
[1727651035146,0.21251315,65750.0,65749.0,0.02060952]
[1727651035868,0.180026,65750.0,65749.0,0.02060952]
[1727651036054,0.090026,65750.0,65749.0,0.02060952]
[1727651036852,0.090026,65750.0,65749.0,0.09663652]
[1727651043150,0.014,65750.0,65749.0,0.09663652]
[1727651044959,0.014,65750.0,65749.0,0.45743652]
[1727651045766,0.090026,65750.0,65749.0,0.45743652]
[1727651048563,0.090026,65750.0,65749.0,0.09663652]
[1727651049151,0.014,65750.0,65749.0,0.09663652]
[1727651049765,0.014,65750.0,65749.0,0.18663652]
[1727651050062,0.014,65750.0,65749.0,0.21753652]
[1727651052166,0.014,65750.0,65749.0,0.12753652]
[1727651055266,0.014,65750.0,65749.0,0.48833652]
[1727651059975,0.104,65750.0,65749.0,0.45743652]
[1727651060969,0.014,65750.0,65749.0,0.45743652]
[1727651064170,0.014,65750.0,65749.0,0.09663652]
[1727651064370,0.014,65750.0,65749.0,0.45743652]
[1727651065066,0.014,65750.0,65749.0,0.09663652]
[1727651065271,0.014,65750.0,65749.0,0.45743652]
[1727651065579,0.04675903,65750.0,65749.0,0.45743652]
[1727651066167,0.04675903,65750.0,65749.0,0.09663652]
[1727651066371,0.04675903,65750.0,65749.0,0.45743652]
[1727651067280,0.04675503,65750.0,65749.0,0.45743652]
[1727651067873,0.13675503,65750.0,65749.0,0.45743652]
[1727651069972,0.04675503,65750.0,65749.0,0.45743652]
[1727651071288,0.04675503,65750.0,65749.0,0.02060952]
[1727651071289,0.28635977,65750.0,65749.0,0.02060952]
[1727651071584,0.25049426,65750.0,65749.0,0.002]
[1727651072079,0.37201857,65750.0,65749.0,0.002]
[1727651072576,0.37213359,65750.0,65749.0,0.002]
[1727651073372,0.21278103,65750.0,65749.0,0.002]
[1727651073775,0.31921578,65750.0,65749.0,0.002]
[1727651074578,0.21278103,65750.0,65749.0,0.002]
[1727651075077,0.12278103,65750.0,65749.0,0.002]
[1727651075287,0.21278103,65750.0,65749.0,0.002]
[1727651079116,0.180026,65750.0,65749.0,0.002]
[1727651079385,0.21223739,65750.0,65749.0,0.002]
[1727651079590,0.21222162,65750.0,65749.0,0.002]
[1727651080380,0.24960532,65750.0,65749.0,0.002]
[1727651081293,0.249541,65750.0,65749.0,0.002]
[1727651081985,0.610341,65750.0,65749.0,0.002]
[1727651082893,0.61034183,65750.0,65749.0,0.002]
[1727651084177,0.57299328,65750.0,65749.0,0.002]
[1727651085188,0.61038319,65750.0,65749.0,0.002]
[1727651085499,0.57299328,65750.0,65749.0,0.002]
[1727651085691,0.61037214,65750.0,65749.0,0.002]
[1727651087696,0.67927321,65750.0,65749.0,0.002]
[1727651088585,0.540826,65750.0,65749.0,0.002]
[1727651089237,0.450826,65750.0,65749.0,0.002]
[1727651089400,0.450826,65750.0,65749.0,0.078027]
[1727651095495,0.48316222,65750.0,65749.0,0.078027]
[1727651097322,0.48316222,65750.0,65749.0,0.002]
[1727651097528,0.52071999,65750.0,65749.0,0.002]
[1727651100327,0.15991999,65750.0,65749.0,0.002]
[1727651100528,0.28155932,65750.0,65749.0,0.002]
[1727651100731,0.28164681,65750.0,65749.0,0.002]
[1727651101627,0.16000748,65750.0,65749.0,0.002]
[1727651102529,0.22888085,65750.0,65749.0,0.002]
[1727651103624,0.52045197,65750.0,65735.0,0.0022814]
[1727651103921,0.166042,65736.0,65735.0,0.0022814]
[1727651104126,0.19775622,65736.0,65735.0,0.0022814]
[1727651105232,0.166042,65736.0,65735.0,0.0022814]
[1727651105426,0.168042,65736.0,65735.0,0.0022814]
[1727651106022,0.168042,65736.0,65725.0,0.3608]
[1727651106023,0.076054,65726.0,65725.0,0.3608]
[1727651106228,0.076055,65725.0,65722.0,0.076058]
[1727651106533,0.09,65723.0,65722.0,0.076058]
[1727651106835,0.076066,65716.0,65711.0,0.00228253]
[1727651107026,0.09,65712.0,65711.0,0.00228253]
[1727651107441,0.09,65712.0,65711.0,0.02075961]
[1727651107930,0.09,65712.0,65711.0,0.00228253]
[1727651108725,0.09,65712.0,65711.0,0.00328253]
[1727651109734,0.095,65712.0,65711.0,0.00328253]
[1727651110134,0.101,65712.0,65711.0,0.00328253]
[1727651110428,0.4618,65712.0,65711.0,0.00328253]
[1727651110828,0.3658,65712.0,65711.0,0.07835353]
[1727651111018,0.3718,65712.0,65711.0,0.07935353]
[1727651111920,0.3668,65712.0,65711.0,0.07935353]
[1727651112124,0.3718,65712.0,65711.0,0.07935353]
[1727651112324,0.011,65712.0,65711.0,0.16935353]
[1727651113137,0.011,65712.0,65711.0,0.07935353]
[1727651113728,0.005,65712.0,65711.0,0.07835353]
[1727651113941,0.011,65712.0,65711.0,0.07935353]
[1727651116142,0.011,65712.0,65711.0,0.00328253]
[1727651116340,0.08707,65712.0,65711.0,0.00328253]
[1727651117933,0.44787,65712.0,65711.0,0.00328253]
[1727651118127,0.08707,65712.0,65711.0,0.00328253]
[1727651118339,0.44787,65712.0,65711.0,0.00328253]
[1727651119638,0.44787,65712.0,65711.0,0.001]
[1727651120235,0.076077,65706.0,65705.0,0.0035]
[1727651120436,0.076077,65706.0,65693.0,0.076091]
[1727651120437,0.07609,65696.0,65693.0,0.076091]
[1727651120650,0.09,65694.0,65693.0,0.076091]
[1727651120835,0.09,65694.0,65691.0,0.00228314]
[1727651121439,0.076093,65692.0,65691.0,0.00228314]
[1727651122446,0.063093,65692.0,65691.0,0.00228314]
[1727651122851,0.063093,65692.0,65691.0,0.01628314]
[1727651122852,0.064093,65692.0,65691.0,0.01628314]
[1727651123154,0.064093,65692.0,65691.0,0.03028314]
[1727651123550,0.204093,65692.0,65691.0,0.03028314]
[1727651123746,0.205093,65692.0,65691.0,0.02928314]
[1727651124444,0.002,65692.0,65691.0,0.02928314]
[1727651124648,0.002,65692.0,65691.0,0.10537714]
[1727651133746,0.218093,65692.0,65691.0,0.10537714]
[1727651134150,0.218093,65692.0,65691.0,0.02928314]
[1727651136456,0.313393,65692.0,65682.0,0.0035]
[1727651136757,0.14,65685.0,65684.0,0.076102]
[1727651136956,0.216101,65685.0,65684.0,0.076102]
[1727651139663,0.218101,65685.0,65684.0,0.080102]
[1727651141265,0.142,65685.0,65684.0,0.080102]
[1727651142961,0.218101,65685.0,65684.0,0.080102]
[1727651145764,0.168101,65685.0,65684.0,0.080102]
[1727651146868,0.168101,65685.0,65684.0,0.12556144]
[1727651147067,0.168101,65685.0,65684.0,0.080102]
[1727651147368,0.168101,65685.0,65684.0,0.12563886]
[1727651148176,0.168101,65685.0,65684.0,0.080102]
[1727651150052,0.092,65685.0,65684.0,0.14071459]
[1727651150780,0.168101,65685.0,65684.0,0.080102]
[1727651151285,0.168101,65685.0,65684.0,0.004]
[1727651154459,0.168101,65685.0,65684.0,0.04959613]
[1727651154967,0.168101,65685.0,65684.0,0.004]
[1727651158765,0.528901,65685.0,65684.0,0.004]
[1727651160375,0.528901,65685.0,65684.0,0.080102]
[1727651160777,0.528901,65685.0,65684.0,0.004]
[1727651163360,0.528901,65685.0,65684.0,0.080102]
[1727651165377,0.168101,65685.0,65684.0,0.080102]
[1727651165677,0.528901,65685.0,65684.0,0.080102]
[1727651166676,0.168101,65685.0,65684.0,0.080102]
[1727651166878,0.528901,65685.0,65684.0,0.080102]
[1727651169267,0.528901,65685.0,65684.0,0.004]
[1727651171080,0.528901,65685.0,65684.0,0.080102]
[1727651171884,0.528901,65685.0,65684.0,0.004]
[1727651172766,0.528901,65685.0,65678.0,0.08292271]
[1727651172767,0.076107,65680.0,65678.0,0.0035]
[1727651172980,0.528902,65685.0,65677.0,0.07611]
[1727651172981,0.076109,65678.0,65677.0,0.07611]
[1727651173882,0.072109,65678.0,65677.0,0.07611]
[1727651174580,0.073109,65678.0,65677.0,0.08011]
[1727651174911,0.074109,65678.0,65677.0,0.08011]
[1727651177768,0.074109,65678.0,65677.0,0.14072259]
[1727651178176,0.074109,65678.0,65677.0,0.08011]
[1727651180684,0.164109,65678.0,65677.0,0.08011]
[1727651183289,0.164109,65678.0,65677.0,0.14095598]
[1727651183984,0.164109,65678.0,65677.0,0.08011]
[1727651185782,0.164109,65678.0,65677.0,0.14095755]
[1727651188084,0.164109,65678.0,65677.0,0.06484755]
[1727651188686,0.164109,65678.0,65677.0,0.004]
[1727651192803,0.19447136,65678.0,65677.0,0.004]
[1727651193288,0.164109,65678.0,65677.0,0.004]
[1727651197683,0.524909,65678.0,65677.0,0.004]
[1727651198090,0.164109,65678.0,65677.0,0.004]
[1727651198498,0.524909,65678.0,65677.0,0.004]
[1727651199397,0.434909,65678.0,65677.0,0.004]
[1727651199697,0.524909,65678.0,65677.0,0.004]
[1727651202493,0.524909,65678.0,65673.0,0.00228392]
[1727651202696,0.166114,65674.0,65673.0,0.00228392]
[1727651205407,0.076124,65666.0,65664.0,0.0035]
[1727651205595,0.09,65665.0,65662.0,0.0313]
[1727651205796,0.09,65665.0,65664.0,0.076126]
[1727651206013,0.166125,65665.0,65664.0,0.076126]
[1727651206696,0.167125,65665.0,65664.0,0.076126]
[1727651207215,0.168125,65665.0,65664.0,0.076126]
[1727651207390,0.168125,65665.0,65662.0,0.01854107]
[1727651207391,0.076127,65663.0,65662.0,0.01854107]
[1727651207591,0.076129,65661.0,65659.0,0.3608]
[1727651207811,0.002,65665.0,65644.0,0.3608]
[1727651208112,0.09,65645.0,65644.0,0.01844654]
[1727651208309,0.09,65645.0,65642.0,0.0004]
[1727651208994,0.8116,65645.0,65642.0,0.0004]
[1727651209309,0.8126,65645.0,65642.0,0.0004]
[1727651210099,0.076149,65644.0,65642.0,0.0004]
[1727651211508,0.077149,65644.0,65642.0,0.0004]
[1727651212405,0.078149,65644.0,65642.0,0.0004]
[1727651216018,0.07615,65643.0,65642.0,0.0004]
[1727651217106,0.07715,65643.0,65642.0,0.0004]
[1727651217925,0.07815,65643.0,65642.0,0.0004]
[1727651219626,0.07815,65643.0,65634.0,0.01915798]
[1727651219919,0.4508,65635.0,65633.0,0.109361]
[1727651220318,0.3608,65635.0,65634.0,0.07616]
[1727651220521,0.7216,65635.0,65633.0,0.0332]
[1727651220714,0.7216,65635.0,65630.0,0.076565]
[1727651220715,0.09,65634.0,65630.0,0.0004]
[1727651221024,0.09,65631.0,65630.0,0.0004]
[1727651221228,0.166164,65631.0,65630.0,0.0004]
[1727651221611,0.076167,65628.0,65627.0,0.01846549]
[1727651221823,0.436967,65628.0,65616.0,0.063]
[1727651222025,0.14,65626.0,65625.0,0.076571]
[1727651222718,0.3608,65628.0,65625.0,0.0004]
[1727651222918,0.3608,65628.0,65627.0,0.076169]
[1727651223516,0.7216,65628.0,65627.0,0.076169]
[1727651224320,0.7226,65628.0,65627.0,0.076169]
[1727651225331,0.7236,65628.0,65627.0,0.076169]
[1727651226026,0.7236,65628.0,65625.0,0.0316]
[1727651226227,0.14,65626.0,65625.0,0.0316]
[1727651226427,0.21617,65626.0,65625.0,0.0316]
[1727651226731,0.21617,65626.0,65625.0,0.107771]
[1727651227429,0.21617,65626.0,65625.0,0.0316]
[1727651227430,0.21817,65626.0,65625.0,0.0316]
[1727651227618,0.21817,65626.0,65625.0,0.0004]
[1727651228727,0.142,65626.0,65625.0,0.076571]
[1727651230627,0.8636,65626.0,65625.0,0.076571]
[1727651232129,0.93977,65626.0,65625.0,0.076571]
[1727651233024,0.93977,65626.0,65625.0,0.0004]
[1727651234035,0.93977,65626.0,65625.0,0.076571]
[1727651234233,0.93977,65626.0,65625.0,0.0004]
[1727651234427,0.8636,65626.0,65625.0,0.0004]
[1727651234628,0.8636,65626.0,65625.0,0.076571]
[1727651234823,0.7236,65626.0,65625.0,0.076571]
[1727651235930,0.7236,65626.0,65625.0,1.273691]
[1727651235931,0.30477679,65626.0,65625.0,1.273691]
[1727651236135,0.14,65645.0,65635.0,0.076159]
[1727651236325,0.14,65640.0,65626.0,0.076169]
[1727651236636,0.14,65634.0,65625.0,0.0004]
[1727651236832,0.14,65629.0,65625.0,0.0004]
[1727651237029,0.14,65629.0,65628.0,0.076167]
[1727651238126,0.142,65629.0,65628.0,0.076167]
[1727651242832,0.002,65629.0,65628.0,0.076167]
[1727651243329,0.002,65629.0,65628.0,0.107267]
[1727651243835,0.002,65629.0,65628.0,0.137367]
[1727651244739,0.002,65629.0,65628.0,0.167767]
[1727651246131,0.002,65629.0,65628.0,1.224887]
[1727651246331,0.002,65629.0,65628.0,1.274887]
[1727651246637,0.0035,65638.0,65637.0,0.076157]
[1727651246849,0.0035,65651.0,65643.0,0.07615]
[1727651247044,0.27626686,65657.0,65647.0,0.14]
[1727651247045,0.27976686,65657.0,65647.0,0.14]
[1727651247342,0.27626686,65657.0,65656.0,0.076135]
[1727651247550,0.1712,65657.0,65656.0,0.076135]
[1727651247732,0.0312,65657.0,65656.0,0.076135]
[1727651248633,0.0352,65657.0,65656.0,0.076135]
[1727651249331,0.1752,65657.0,65656.0,0.076135]
[1727651249528,0.1782,65657.0,65656.0,0.076135]
[1727651249756,0.1782,65657.0,65652.0,0.076139]
[1727651249939,0.14,65653.0,65652.0,0.07614]
[1727651250435,0.1742,65657.0,65649.0,0.3608]
[1727651250636,0.0382,65657.0,65656.0,0.076135]
[1727651251039,0.004,65657.0,65656.0,0.076135]
[1727651251943,0.007,65657.0,65656.0,0.076135]
[1727651252138,0.003,65657.0,65656.0,0.076135]
[1727651253143,0.004,65657.0,65656.0,0.076135]
[1727651253931,0.004,65657.0,65656.0,0.09495215]
[1727651256452,0.003,65657.0,65656.0,0.09495215]
[1727651256636,0.001,65657.0,65656.0,0.09595215]
[1727651257445,0.00228583,65659.0,65657.0,0.076133]
[1727651257946,0.00228583,65659.0,65656.0,0.02081715]
[1727651257947,0.00228583,65659.0,65658.0,0.076133]
[1727651258743,0.00628583,65659.0,65658.0,0.076133]
[1727651259244,0.00228583,65659.0,65658.0,0.076133]
[1727651259443,0.00528583,65659.0,65658.0,0.076133]
[1727651259947,0.00728583,65659.0,65658.0,0.076133]
[1727651260142,0.00828583,65659.0,65658.0,0.076133]
[1727651260843,0.00728583,65659.0,65658.0,0.076133]
[1727651261041,0.01228583,65659.0,65658.0,0.076133]
[1727651261944,0.08741683,65659.0,65658.0,0.076133]
[1727651262545,0.08841683,65659.0,65658.0,0.076133]
[1727651265858,0.076134,65657.0,65656.0,0.01881715]
[1727651266049,0.076136,65655.0,65654.0,0.36196]
[1727651266251,0.076136,65655.0,65654.0,0.3608]
[1727651266848,0.076136,65655.0,65646.0,0.3643]
[1727651266849,0.076138,65653.0,65652.0,0.01881526]
[1727651267054,0.076144,65648.0,65647.0,0.076145]
[1727651267359,0.216144,65648.0,65647.0,0.01907054]
[1727651267661,0.216144,65648.0,65646.0,0.3608]
[1727651267662,0.0605,65652.0,65646.0,0.3608]
[1727651267852,0.076143,65649.0,65648.0,0.076144]
[1727651268856,0.216143,65649.0,65648.0,0.076144]
[1727651269048,0.076145,65647.0,65646.0,0.3688]
[1727651269245,0.076145,65647.0,65646.0,0.3608]
[1727651269457,0.067145,65647.0,65646.0,0.3608]
[1727651269655,0.076149,65645.0,65643.0,0.07615]
[1727651269851,0.14,65644.0,65643.0,0.07615]
[1727651270056,0.216149,65644.0,65643.0,0.07615]
[1727651270258,0.213149,65644.0,65643.0,0.07615]
[1727651270765,0.213149,65644.0,65640.0,0.3794035]
[1727651270958,0.10845,65643.0,65640.0,0.3794035]
[1727651271563,0.10745,65643.0,65640.0,0.3794035]
[1727651272152,0.0353,65643.0,65642.0,0.076151]
[1727651273759,0.005,65644.0,65640.0,0.3794035]
[1727651273963,0.3608,65650.0,65649.0,0.076143]
[1727651274557,0.436942,65650.0,65649.0,0.076143]
[1727651275572,0.0605,65652.0,65649.0,0.076143]
[1727651275862,0.0605,65652.0,65651.0,0.076141]
[1727651276055,0.13664,65652.0,65651.0,0.076141]
[1727651277657,0.14464,65652.0,65651.0,0.077141]
[1727651277855,0.15164,65652.0,65651.0,0.077141]
[1727651279863,0.14464,65652.0,65651.0,0.077141]
[1727651280168,0.15164,65652.0,65651.0,0.077141]
[1727651280369,0.0755,65652.0,65651.0,0.077141]
[1727651281669,0.15164,65652.0,65651.0,0.077141]
[1727651282259,0.0755,65652.0,65651.0,0.077141]
[1727651283172,0.015,65652.0,65651.0,0.437941]
[1727651286363,0.015,65652.0,65651.0,0.077141]
[1727651286965,0.09114,65652.0,65651.0,0.077141]
[1727651287161,0.09114,65652.0,65651.0,0.001]
[1727651291166,0.09114,65652.0,65651.0,0.077141]
[1727651292071,0.015,65652.0,65651.0,0.077141]
[1727651293074,0.015,65652.0,65651.0,0.437941]
[1727651297072,0.015,65652.0,65651.0,0.077141]
[1727651298787,0.015,65652.0,65651.0,0.437941]
[1727651300476,0.015,65652.0,65651.0,0.077141]
[1727651300477,0.23114,65652.0,65651.0,0.077141]
[1727651300878,0.155,65652.0,65651.0,0.077141]
[1727651302377,0.23114,65652.0,65651.0,0.077141]
[1727651302578,0.23114,65652.0,65651.0,0.001]
[1727651302786,0.23114,65652.0,65644.0,0.37962719]
[1727651302787,0.076146,65647.0,65646.0,0.076146]
[1727651303082,0.14,65651.0,65649.0,0.076142]
[1727651303279,0.10917566,65650.0,65649.0,0.076142]
[1727651304777,0.11517566,65650.0,65649.0,0.077142]
[1727651305292,0.082142,65650.0,65649.0,0.077142]
[1727651306079,0.087142,65650.0,65649.0,0.077142]
[1727651306687,0.081142,65650.0,65649.0,0.076142]
[1727651306883,0.087142,65650.0,65649.0,0.077142]
[1727651307282,0.081142,65650.0,65649.0,0.076142]
[1727651307480,0.089142,65650.0,65649.0,0.077142]
[1727651307713,0.084142,65650.0,65649.0,0.077142]
[1727651307883,0.084142,65650.0,65649.0,0.076142]
[1727651307884,0.091142,65650.0,65649.0,0.076142]
[1727651308093,0.089142,65650.0,65649.0,0.077142]
[1727651308282,0.089142,65650.0,65649.0,0.001]
[1727651308792,0.449942,65650.0,65649.0,0.001]
[1727651309391,0.07615,65643.0,65642.0,0.0035]
[1727651309593,0.076151,65642.0,65641.0,0.00228514]
[1727651309803,0.139151,65642.0,65641.0,0.00228514]
[1727651310294,0.138151,65642.0,65634.0,0.04912468]
[1727651310491,0.14,65635.0,65631.0,0.04562468]
[1727651310800,0.216155,65639.0,65636.0,0.076158]
[1727651311299,0.076156,65638.0,65636.0,0.076158]
[1727651311798,0.076156,65638.0,65637.0,0.076157]
[1727651313295,0.077156,65638.0,65637.0,0.076157]
[1727651313885,0.076156,65638.0,65637.0,0.080157]
[1727651314088,0.077156,65638.0,65637.0,0.080157]
[1727651314897,0.076156,65638.0,65637.0,0.080157]
[1727651315294,0.45704,65638.0,65627.0,0.3608]
[1727651315497,0.14,65630.0,65626.0,0.0035]
[1727651315697,0.14,65630.0,65626.0,0.01933784]
[1727651315894,0.14,65630.0,65625.0,0.0004]
[1727651316398,0.07617,65626.0,65625.0,0.01910416]
[1727651316693,0.07617,65626.0,65625.0,0.0004]
[1727651317306,0.07517,65626.0,65625.0,0.0004]
[1727651317794,0.07617,65626.0,65625.0,0.0014]
[1727651318298,0.21617,65626.0,65625.0,0.0004]
[1727651318597,0.21717,65626.0,65625.0,0.0014]
[1727651330103,0.07717,65626.0,65625.0,0.0014]
[1727651330307,0.21717,65626.0,65625.0,0.0014]
[1727651343516,0.16717,65626.0,65625.0,0.0014]
[1727651345511,0.16717,65626.0,65625.0,0.04702468]
[1727651345713,0.16717,65626.0,65625.0,0.0014]
[1727651346438,0.16717,65626.0,65625.0,0.04702468]
[1727651350321,0.16717,65626.0,65625.0,0.0014]
[1727651351116,0.07717,65626.0,65625.0,0.0014]
[1727651351322,0.16717,65626.0,65625.0,0.077571]
[1727651351622,0.16717,65626.0,65625.0,0.0014]
[1727651352022,0.16717,65626.0,65625.0,0.077571]
[1727651353122,0.16717,65626.0,65625.0,0.528371]
[1727651353123,0.002,65626.0,65625.0,0.528371]
[1727651353348,0.002,65626.0,65625.0,1.04617701]
[1727651353519,0.3608,65635.0,65634.0,0.07616]
[1727651354216,0.4508,65635.0,65634.0,0.07616]
[1727651355423,0.00228607,65640.0,65639.0,0.076155]
[1727651356522,0.00228607,65640.0,65639.0,0.26186969]
[1727651356718,0.00228607,65640.0,65639.0,0.60076747]
[1727651357121,0.0035,65648.0,65647.0,0.076145]
[1727651357420,0.076139,65653.0,65648.0,0.076143]
[1727651358125,0.216139,65653.0,65648.0,0.076143]
[1727651358422,0.01,65648.0,65647.0,0.436945]
[1727651359227,0.163,65653.0,65650.0,0.076141]
[1727651359520,0.163,65653.0,65651.0,0.076141]
[1727651359921,0.239139,65653.0,65651.0,0.076141]
[1727651360139,0.163,65653.0,65652.0,0.07614]
[1727651360921,0.14,65653.0,65652.0,0.07614]
[1727651361519,0.154,65653.0,65652.0,0.07614]
[1727651361720,0.168,65653.0,65652.0,0.07614]
[1727651362926,0.028,65653.0,65652.0,0.07614]
[1727651363932,0.028,65653.0,65652.0,0.21614]
[1727651364318,0.028,65653.0,65652.0,0.07614]
[1727651364520,0.012,65653.0,65652.0,0.07614]
[1727651364818,0.025,65653.0,65652.0,0.07614]
[1727651366718,0.025,65653.0,65650.0,0.0321]
[1727651366719,0.241138,65653.0,65650.0,0.0321]
[1727651366942,0.076144,65648.0,65647.0,0.00124]
[1727651367123,0.076147,65646.0,65643.0,0.076149]
[1727651367426,0.14,65644.0,65643.0,0.076149]
[1727651367630,0.216149,65644.0,65643.0,0.09477496]
[1727651368022,0.216149,65644.0,65643.0,0.01862596]
[1727651368223,0.076152,65641.0,65640.0,0.3608]
[1727651368435,0.14,65644.0,65638.0,0.076156]
[1727651368631,0.14,65639.0,65638.0,0.09522071]
[1727651370019,0.5078,65644.0,65638.0,0.01906471]
[1727651370239,0.5078,65644.0,65643.0,0.07615]
[1727651370240,0.580949,65644.0,65643.0,0.07615]
[1727651370420,0.576949,65644.0,65643.0,0.07615]
[1727651370818,0.076151,65642.0,65638.0,0.076155]
[1727651371025,0.001,65639.0,65638.0,0.076155]
[1727651371619,0.50772,65644.0,65638.0,0.076155]
[1727651371817,0.216155,65639.0,65638.0,0.076155]
[1727651372735,0.14,65639.0,65638.0,0.076155]
[1727651373132,0.141,65639.0,65638.0,0.076155]
[1727651373724,0.142,65639.0,65638.0,0.076155]
[1727651374429,0.143,65639.0,65638.0,0.076155]
[1727651374735,0.003,65639.0,65638.0,0.076155]
[1727651376952,0.079155,65639.0,65638.0,0.076155]
[1727651377724,0.219155,65639.0,65638.0,0.076155]
[1727651379022,0.143,65639.0,65636.0,0.01851783]
[1727651379349,0.07616,65634.0,65633.0,0.00228536]
[1727651379544,0.21616,65634.0,65633.0,0.00228536]
[1727651379838,0.3608,65635.0,65634.0,0.07616]
[1727651380027,0.076159,65636.0,65634.0,0.07616]
[1727651380424,0.076159,65635.0,65634.0,0.07616]
[1727651381032,0.076159,65635.0,65634.0,0.07816]
[1727651385435,0.076159,65635.0,65634.0,0.002]
[1727651392431,1.133239,65635.0,65625.0,0.0004]
[1727651392631,0.38041178,65637.0,65617.0,0.43698]
[1727651392632,0.076178,65620.0,65617.0,0.43698]
[1727651392837,0.14,65619.0,65618.0,0.076179]
[1727651393843,0.138,65619.0,65618.0,0.076179]
[1727651394744,0.214178,65619.0,65618.0,0.076179]
[1727651394937,0.214178,65619.0,65617.0,0.37969016]
[1727651395645,0.076179,65618.0,65617.0,0.37969016]
[1727651396230,0.076179,65618.0,65617.0,0.45587016]
[1727651397345,0.076179,65618.0,65617.0,0.37969016]
[1727651397540,0.166179,65618.0,65617.0,0.01889016]
[1727651397738,0.166179,65618.0,65615.0,0.076182]
[1727651397739,0.091,65618.0,65615.0,0.076182]
[1727651398048,0.076181,65616.0,65615.0,0.076182]
[1727651399232,0.078181,65616.0,65615.0,0.076182]
[1727651399436,0.078181,65616.0,65615.0,0.09476178]
[1727651400752,0.078181,65616.0,65615.0,0.01857978]
[1727651401044,0.076186,65612.0,65611.0,0.36308618]
[1727651401253,0.166186,65612.0,65611.0,0.36308618]
[1727651401546,0.166186,65612.0,65611.0,0.43927318]
[1727651401747,0.09,65612.0,65611.0,0.45775646]
[1727651402848,0.091,65612.0,65611.0,0.45775646]
[1727651403361,0.092,65612.0,65611.0,0.45775646]
[1727651406940,0.092,65612.0,65611.0,0.09695646]
[1727651407141,0.092,65612.0,65611.0,0.45775646]
[1727651408251,0.092,65612.0,65611.0,0.50338764]
[1727651409253,0.092,65612.0,65611.0,0.45775646]
[1727651414253,0.092,65612.0,65611.0,0.50337074]
[1727651415463,0.092,65612.0,65611.0,0.45775646]
[1727651415956,0.092,65612.0,65611.0,0.50341013]
[1727651416352,0.168186,65612.0,65611.0,0.45775646]
[1727651416557,0.168186,65612.0,65611.0,0.50342124]
[1727651416752,0.168186,65612.0,65611.0,0.45775646]
[1727651418360,0.092,65612.0,65611.0,0.45775646]
[1727651422379,0.092,65612.0,65611.0,0.63867316]
[1727651422563,0.168186,65612.0,65611.0,0.63867316]
[1727651422757,0.768186,65612.0,65604.0,0.09124063]
[1727651422954,0.4508,65605.0,65601.0,0.04573851]
[1727651423166,0.4508,65605.0,65595.0,0.04573851]
[1727651423167,0.09,65602.0,65595.0,0.04573851]
[1727651423366,0.4508,65596.0,65594.0,0.04573851]
[1727651423569,0.3608,65596.0,65595.0,0.166206]
[1727651423764,0.3608,65596.0,65595.0,0.21194451]
[1727651423966,0.3608,65596.0,65595.0,0.076206]
[1727651424368,0.3608,65596.0,65595.0,0.12186264]
[1727651424964,0.3608,65596.0,65595.0,0.076206]
[1727651425186,0.438005,65596.0,65593.0,0.04565664]
[1727651425462,0.166206,65595.0,65594.0,0.076207]
[1727651427775,0.167206,65595.0,65594.0,0.076207]
[1727651428179,0.092,65595.0,65594.0,0.076207]